[Event "POL-chT 2nd League Juniors 2020"]
[Site "Sypniewo"]
[Date "2020.10.23"]
[Round "1.5"]
[White "Jedrzejko, Martyna"]
[Black "Sloniewska, Alicja"]
[Result "1-0"]
[ECO "B19"]
[WhiteElo "1618"]
[BlackElo "1755"]
[Annotator "NA"]
[PlyCount "107"]
[EventDate "2020.10.23"]
[EventType "team-tourn"]
[EventCountry "POL"]
[SourceTitle "playchess.com"]
[Source "ChessBase"]
[SourceQuality "1"]
[TimeControl "5400+30"]

1. e4 {[%emt 0:00:00]} c6 {[%emt 0:00:00]} 2. d4 {[%emt 0:00:00]} d5 {[%emt 0:00:04]} 3. Nc3 {[%emt 0:00:02]} dxe4 {[%emt 0:00:34]} 4. Nxe4 {[%emt 0:00:16]} Bf5 {[%emt 0:00:46]} 5. Ng3 {[%emt 0:00:21]} Bg6 {[%emt 0:00:29]} 6. h4 {[%emt 0:00:26]} h6 {[%emt 0:00:27]} 7. Nf3 {[%emt 0:00:26]} Nd7 {[%emt 0:00:30]} 8. h5 {[%emt 0:00:28]} Bh7 {[%emt 0:00:22]} 9. Bd3 {[%emt 0:00:38]} Bxd3 {[%emt 0:00:28]} 10. Qxd3 {[%emt 0:00:11]} e6 {[%emt 0:00:42]} 11. Bd2 {[%emt 0:01:00]} Ngf6 {[%emt 0:02:38]} 12. O-O-O {[%emt 0:01:25]} Be7 {[%emt 0:00:56]} 13. Kb1 {[%emt 0:00:31]} O-O {[%emt 0:01:04]} 14. Ne4 {[%emt 0:00:29]} Nxe4 {[%emt 0:01:10]} 15. Qxe4 {[%emt 0:00:12]} Nf6 {[%emt 0:00:22]} 16. Qe2 {[%emt 0:00:24]} Qd5 {[%emt 0:01:25]} 17. Be3 {[%emt 0:01:34]} b5 {[%emt 0:08:14]} 18. Nd2 {[%emt 0:01:58]} a5 {[%emt 0:03:48]} 19. g4 {[%emt 0:02:19]} a4 {[%emt 0:03:10]} 20. Rhg1 {[%emt 0:02:21]} Nd7 {[%emt 0:04:10]} 21. f4 {[%emt 0:06:55]} b4 {[%emt 0:05:12]} 22. g5 {[%emt 0:06:38]} hxg5 {[%emt 0:03:13]} 23. fxg5 {[%emt 0:00:19]} Qa5 {[%emt 0:02:56]} 24. h6 {[%emt 0:02:39]} g6 {[%emt 0:08:21]} 25. h7+ {[%emt 0:12:45]} Kg7 {[%emt 0:04:26]} 26. Rh1 {[%emt 0:06:13]} Bxg5 {[%emt 0:06:30]} 27. Bxg5 {[%emt 0:03:47]} Qxg5 {[%emt 0:00:14]} 28. Ne4 {[%emt 0:02:58]} Qd5 {[%emt 0:03:48]} 29. Qe3 {[%emt 0:05:33]} b3 {[%emt 0:03:07]} 30. cxb3 {[%emt 0:02:02]} axb3 {[%emt 0:00:09]} 31. a3 {[%emt 0:01:39]} Kh8 {[%emt 0:03:26]} 32. Rdf1 {[%emt 0:06:20]} Rad8 {[%emt 0:07:10]} 33. Ng5 {[%emt 0:06:11]} Nb6 {[%emt 0:03:29]} 34. Qe5+ {[%emt 0:03:15]} Qxe5 {[%emt 0:01:33]} 35. dxe5 {[%emt 0:00:05]} Rd7 {[%emt 0:01:20]} 36. Nxe6 {[%emt 0:01:19]} Re8 {[%emt 0:03:54]} 37. Ng5 {[%emt 0:00:40]} Nc4 {[%emt 0:06:00]} 38. Nxf7+ {[%emt 0:03:03]} Kg7 {[%emt 0:01:48]} 39. Rf4 {[%emt 0:11:41]} Rxf7 {[%emt 0:03:49]} 40. Rxf7+ {[%emt 0:00:49]} Kxf7 {[%emt 0:00:06]} 41. h8=Q {[%emt 0:00:11]} Rxh8 {[%emt 0:00:21]} 42. Rxh8 {[%emt 0:00:08]} Nxe5 {[%emt 0:00:38]} 43. Rh3 {[%emt 0:00:41]} g5 {[%emt 0:01:17]} 44. Rxb3 {[%emt 0:00:39]} g4 {[%emt 0:00:14]} 45. a4 {[%emt 0:01:43]} Ke6 {[%emt 0:00:26]} 46. Kc2 {[%emt 0:00:43]} Nc4 {[%emt 0:01:50]} 47. Rc3 {[%emt 0:00:56]} Kd5 {[%emt 0:00:21]} 48. b4 {[%emt 0:01:56]} Nb6 {[%emt 0:02:00]} 49. a5 {[%emt 0:00:21]} Nd7 {[%emt 0:00:09]} 50. a6 {[%emt 0:00:45]} Nb6 {[%emt 0:00:29]} 51. Rg3 {[%emt 0:01:24]} c5 {[%emt 0:01:30]} 52. b5 {[%emt 0:00:32]} Kc4 {[%emt 0:00:11]} 53. a7 {[%emt 0:01:25]} Kxb5 {[%emt 0:01:24]} 54. Rb3+ {[%emt 0:00:22]} 1-0

[Event "POL-chT 2nd League Juniors 2020"]
[Site "Sypniewo"]
[Date "2020.10.23"]
[Round "1.6"]
[White "Tim, Anna"]
[Black "Konkol, Sandra"]
[Result "1-0"]
[ECO "A41"]
[WhiteElo "1237"]
[BlackElo "1235"]
[Annotator "NA RC"]
[PlyCount "35"]
[EventDate "2020.10.23"]
[EventType "team-tourn"]
[EventCountry "POL"]
[SourceTitle "playchess.com"]
[Source "ChessBase"]
[SourceQuality "1"]
[TimeControl "5400+30"]

1. d4 {[%emt 0:00:00]} d6 {[%emt 0:00:09]} 2. c4 {[%emt 0:00:00]} e5 {[%emt 0:00:28]} 3. e3 {[%emt 0:03:41]} f5 {[%emt 0:03:33]} 4. dxe5 {[%emt 0:03:42]} dxe5 {[%emt 0:00:22]} 5. Qxd8+ {[%emt 0:00:42]} Kxd8 {[%emt 0:00:15]} 6. Nc3 {[%emt 0:02:28]} c5 {[%emt 0:05:19]} 7. g3 {[%emt 0:07:17]} Nf6 {[%emt 0:09:42]} 8. Bg2 {[%emt 0:02:33]} Kc7 {[%emt 0:00:45]} 9. e4 {[%emt 0:04:33]} g6 {[%emt 0:03:20]} 10. Bg5 {[%emt 0:07:49]} Bg7 {[%emt 0:05:03]} 11. Bxf6 {[%emt 0:03:54]} Bxf6 {[%emt 0:00:19]} 12. Nd5+ {[%emt 0:00:15]} Kc6 {[%emt 0:05:21]} 13. Nxf6 {[%emt 0:00:31]} fxe4 {[%emt 0:02:13]} 14. Bxe4+ {[%emt 0:06:15]} Kd6 {[%emt 0:05:05]} 15. O-O-O+ {[%emt 0:01:18]} Ke6 {[%emt 0:03:02]} 16. Nd5 {[%emt 0:01:04]} Na6 {[%emt 0:00:34]} 17. Nf3 {[%emt 0:20:37]} Bd7 {[%emt 0:06:09]} 18. Ng5+ {[%emt 0:02:47]} 1-0

[Event "POL-chT 2nd League Juniors 2020"]
[Site "Sypniewo"]
[Date "2020.10.23"]
[Round "1.7"]
[White "Piwowarczyk, Bartlomiej"]
[Black "Lewandowski, Wiktor"]
[Result "1/2-1/2"]
[ECO "A45"]
[WhiteElo "1773"]
[BlackElo "1756"]
[Annotator "NA"]
[PlyCount "65"]
[EventDate "2020.10.23"]
[EventType "team-tourn"]
[EventCountry "POL"]
[SourceTitle "playchess.com"]
[Source "ChessBase"]
[SourceQuality "1"]
[TimeControl "5400+30"]

1. d4 {[%emt 0:00:00]} Nf6 {[%emt 0:00:00]} 2. Bf4 {[%emt 0:00:00]} d5 {[%emt 0:00:06]} 3. e3 {[%emt 0:00:00]} c5 {[%emt 0:00:25]} 4. c3 {[%emt 0:00:06]} Nc6 {[%emt 0:00:14]} 5. Nd2 {[%emt 0:01:09]} Bf5 {[%emt 0:02:45]} 6. Qb3 {[%emt 0:02:48]} Qb6 {[%emt 0:03:45]} 7. dxc5 {[%emt 0:05:02]} Qxb3 {[%emt 0:00:44]} 8. Nxb3 {[%emt 0:03:21]} e5 {[%emt 0:02:26]} 9. Bg3 {[%emt 0:01:56]} a5 {[%emt 0:03:06]} 10. Nf3 {[%emt 0:09:36]} a4 {[%emt 0:07:35]} 11. Nbd2 {[%emt 0:03:26]} Nd7 {[%emt 0:00:59]} 12. Bb5 {[%emt 0:11:24]} f6 {[%emt 0:01:17]} 13. O-O {[%emt 0:11:26]} Bxc5 {[%emt 0:00:47]} 14. Rfe1 {[%emt 0:01:32]} Be6 {[%emt 0:08:59]} 15. a3 {[%emt 0:07:22]} O-O {[%emt 0:03:31]} 16. c4 {[%emt 0:03:18]} dxc4 {[%emt 0:07:17]} 17. Bxc4 {[%emt 0:08:45]} Bxc4 {[%emt 0:01:58]} 18. Nxc4 {[%emt 0:00:15]} Nb6 {[%emt 0:05:36]} 19. Rac1 {[%emt 0:02:31]} Nxc4 {[%emt 0:01:12]} 20. Rxc4 {[%emt 0:00:05]} Be7 {[%emt 0:01:33]} 21. Nd2 {[%emt 0:02:57]} Bd8 {[%emt 0:16:50]} 22. Ne4 {[%emt 0:02:56]} Ne7 {[%emt 0:06:11]} 23. Nd6 {[%emt 0:01:59]} b6 {[%emt 0:01:09]} 24. Rd1 {[%emt 0:02:10]} Ng6 {[%emt 0:03:08]} 25. Nf5 {[%emt 0:05:30]} Ne7 {[%emt 0:02:06]} 26. Nd6 {[%emt 0:00:16]} Ng6 {[%emt 0:00:08]} 27. Nf5 {[%emt 0:03:29]} Ne7 {[%emt 0:00:04]} 28. Nxe7+ {[%emt 0:06:51]} Bxe7 {[%emt 0:00:02]} 29. Rc7 {[%emt 0:00:10]} Rfd8 {[%emt 0:01:14]} 30. Rdd7 {[%emt 0:02:26]} Rxd7 {[%emt 0:01:40]} 31. Rxd7 {[%emt 0:00:03]} Bc5 {[%emt 0:00:21]} 32. Kf1 {[%emt 0:00:13]} f5 33. Kg1 1/2-1/2

[Event "POL-chT 2nd League Juniors 2020"]
[Site "Sypniewo"]
[Date "2020.10.23"]
[Round "1.7"]
[White "Ursnik, Patryk"]
[Black "Zabron, Maksym"]
[Result "1/2-1/2"]
[ECO "B22"]
[WhiteElo "1645"]
[BlackElo "1932"]
[Annotator "ChessBase"]
[PlyCount "89"]
[EventDate "2020.10.23"]
[EventType "team-tourn"]
[EventCountry "POL"]
[SourceTitle "playchess.com"]
[Source "ChessBase"]
[SourceQuality "1"]
[TimeControl "5400+30"]

1. e4 {[%emt 0:00:16]} c5 {[%emt 0:00:00]} 2. c3 {[%emt 0:00:21]} d5 {[%emt 0:00:00]} 3. exd5 {[%emt 0:00:12]} Qxd5 {[%emt 0:00:00]} 4. d4 {[%emt 0:00:32]} Nf6 {[%emt 0:00:00]} 5. Nf3 {[%emt 0:00:21]} Bg4 {[%emt 0:00:10]} 6. Be2 {[%emt 0:00:13]} e6 {[%emt 0:00:08]} 7. O-O {[%emt 0:00:38]} Nc6 {[%emt 0:00:17]} 8. h3 {[%emt 0:00:08]} Bh5 {[%emt 0:00:06]} 9. Be3 {[%emt 0:00:28]} cxd4 {[%emt 0:00:10]} 10. cxd4 {[%emt 0:00:13]} Be7 {[%emt 0:00:43]} 11. Nc3 {[%emt 0:00:32]} Qd6 {[%emt 0:00:15]} 12. a3 {[%emt 0:00:36]} O-O {[%emt 0:03:57]} 13. Qb3 {[%emt 0:02:05]} a6 {[%emt 0:02:22]} 14. Rfd1 {[%emt 0:02:13]} Rfd8 {[%emt 0:00:44]} 15. Rac1 {[%emt 0:01:27]} b5 {[%emt 0:01:51]} 16. Qa2 {[%emt 0:06:39]} Rac8 {[%emt 0:07:59]} 17. b4 {[%emt 0:13:09]} Bg6 {[%emt 0:14:15]} 18. Qb3 {[%emt 0:21:16]} Ne4 {[%emt 0:07:40]} 19. d5 {[%emt 0:02:52]} Nxc3 {[%emt 0:01:33]} 20. Rxc3 {[%emt 0:00:10]} exd5 {[%emt 0:03:00]} 21. Bb6 {[%emt 0:00:11]} Bf6 {[%emt 0:13:17]} 22. Bxd8 {[%emt 0:16:06]} Bxc3 {[%emt 0:00:23]} 23. Rxd5 {[%emt 0:04:44]} Qe6 {[%emt 0:00:25]} 24. Ng5 {[%emt 0:00:26]} Qxe2 {[%emt 0:00:54]} 25. Qxc3 {[%emt 0:00:16]} h6 {[%emt 0:02:31]} 26. Nf3 {[%emt 0:06:12]} Ne7 {[%emt 0:07:21]} 27. Qd2 {[%emt 0:02:11]} Rc1+ {[%emt 0:08:09]} 28. Qxc1 {[%emt 0:07:07]} Nxd5 {[%emt 0:00:09]} 29. Qc6 {[%emt 0:05:25]} Nxb4 {[%emt 0:05:26]} 30. axb4 {[%emt 0:01:10]} Qd1+ {[%emt 0:02:00]} 31. Kh2 {[%emt 0:00:31]} Qxd8 {[%emt 0:00:10]} 32. Qxa6 {[%emt 0:00:13]} Qc7+ {[%emt 0:00:41]} 33. Kh1 {[%emt 0:01:26]} Qc1+ {[%emt 0:01:04]} 34. Ng1 {[%emt 0:00:04]} Qc4 {[%emt 0:01:03]} 35. Qd6 {[%emt 0:02:33]} Be4 {[%emt 0:02:42]} 36. Kh2 {[%emt 0:00:43]} Kh7 {[%emt 0:02:23]} 37. Qd2 {[%emt 0:02:32]} Qc6 {[%emt 0:02:26]} 38. f3 {[%emt 0:00:45]} Bf5 {[%emt 0:01:36]} 39. Ne2 {[%emt 0:00:13]} Qc4 {[%emt 0:01:53]} 40. Qf4 {[%emt 0:00:42]} Bd3 {[%emt 0:04:01]} 41. Qxc4 {[%emt 0:00:31]} Bxc4 {[%emt 0:00:07]} 42. Nd4 {[%emt 0:00:09]} Kg6 {[%emt 0:00:29]} 43. Kg3 {[%emt 0:00:04]} Kf6 {[%emt 0:00:15]} 44. Kf4 {[%emt 0:00:23]} g6 {[%emt 0:01:20]} 45. Ke4 1/2-1/2

[Event "POL-chT 2nd League Juniors 2020"]
[Site "Sypniewo"]
[Date "2020.10.23"]
[Round "1.8"]
[White "Kolodziejski, Piotr"]
[Black "Pietrzak, Tomasz"]
[Result "1/2-1/2"]
[ECO "C45"]
[WhiteElo "1905"]
[BlackElo "1896"]
[Annotator "ChessBase"]
[PlyCount "98"]
[EventDate "2020.10.23"]
[EventType "team-tourn"]
[EventCountry "POL"]
[SourceTitle "playchess.com"]
[Source "ChessBase"]
[SourceQuality "1"]
[TimeControl "5400+30"]

1. e4 {[%emt 0:00:00]} e5 {[%emt 0:00:00]} 2. Nf3 {[%emt 0:00:00]} Nc6 {[%emt 0:00:00]} 3. d4 {[%emt 0:00:07]} exd4 {[%emt 0:00:00]} 4. Nxd4 {[%emt 0:00:08]} Bc5 {[%emt 0:00:02]} 5. Be3 {[%emt 0:00:21]} Qf6 {[%emt 0:00:13]} 6. c3 {[%emt 0:02:20]} Nge7 {[%emt 0:00:34]} 7. Bb5 {[%emt 0:01:52]} O-O {[%emt 0:16:07]} 8. O-O {[%emt 0:03:01]} Bb6 {[%emt 0:12:23]} 9. Na3 {[%emt 0:09:09]} d6 {[%emt 0:10:19]} 10. Bxc6 {[%emt 0:07:08]} Nxc6 {[%emt 0:06:09]} 11. Nxc6 {[%emt 0:01:54]} bxc6 {[%emt 0:03:40]} 12. Nc2 {[%emt 0:03:09]} Re8 {[%emt 0:04:52]} 13. Bxb6 {[%emt 0:04:02]} axb6 {[%emt 0:04:25]} 14. f3 {[%emt 0:00:47]} Bb7 {[%emt 0:05:05]} 15. Qd2 {[%emt 0:09:11]} d5 {[%emt 0:07:47]} 16. exd5 {[%emt 0:00:42]} cxd5 {[%emt 0:01:41]} 17. Rfe1 {[%emt 0:02:00]} g6 {[%emt 0:08:08]} 18. Rxe8+ {[%emt 0:08:10]} Rxe8 {[%emt 0:00:05]} 19. Re1 {[%emt 0:00:10]} Rxe1+ {[%emt 0:03:13]} 20. Qxe1 {[%emt 0:01:43]} c5 {[%emt 0:04:27]} 21. Qd2 {[%emt 0:05:44]} Qe5 {[%emt 0:02:54]} 22. Ne1 {[%emt 0:04:51]} Ba6 {[%emt 0:00:54]} 23. f4 {[%emt 0:06:44]} Qe4 {[%emt 0:00:40]} 24. Kf2 {[%emt 0:00:18]} Qc4 {[%emt 0:03:41]} 25. a3 {[%emt 0:02:44]} h5 {[%emt 0:01:51]} 26. Nf3 {[%emt 0:01:00]} Qe4 {[%emt 0:02:56]} 27. Ng5 {[%emt 0:04:08]} Qd3 {[%emt 0:00:41]} 28. Qxd3 {[%emt 0:02:33]} Bxd3 {[%emt 0:00:03]} 29. Ke3 {[%emt 0:00:15]} Bf5 {[%emt 0:00:55]} 30. Nf3 {[%emt 0:01:51]} f6 {[%emt 0:00:26]} 31. Nd2 {[%emt 0:01:30]} Kf7 {[%emt 0:00:21]} 32. b4 {[%emt 0:02:41]} Ke6 {[%emt 0:00:48]} 33. bxc5 {[%emt 0:05:15]} bxc5 {[%emt 0:00:04]} 34. Nf1 {[%emt 0:02:16]} Kd6 {[%emt 0:00:31]} 35. Kd2 {[%emt 0:01:18]} Be4 {[%emt 0:00:16]} 36. g3 {[%emt 0:00:46]} d4 {[%emt 0:01:14]} 37. cxd4 {[%emt 0:00:14]} cxd4 {[%emt 0:00:03]} 38. Ke2 {[%emt 0:01:45]} Kc5 {[%emt 0:00:30]} 39. Nd2 {[%emt 0:00:48]} Bc6 {[%emt 0:00:08]} 40. h3 {[%emt 0:02:00]} Bb5+ {[%emt 0:00:51]} 41. Kf2 {[%emt 0:00:18]} Kd5 {[%emt 0:00:35]} 42. Kf3 {[%emt 0:02:35]} Ba4 {[%emt 0:00:31]} 43. Ke2 {[%emt 0:01:42]} Bb5+ {[%emt 0:00:34]} 44. Kf2 {[%emt 0:00:21]} Bd7 {[%emt 0:00:33]} 45. h4 {[%emt 0:00:11]} Ba4 {[%emt 0:00:38]} 46. Ke2 {[%emt 0:00:31]} Bb5+ {[%emt 0:00:11]} 47. Kf3 {[%emt 0:00:06]} Bd7 {[%emt 0:00:35]} 48. Ke2 {[%emt 0:01:59]} Bb5+ {[%emt 0:00:50]} 49. Kf2 {[%emt 0:00:20]} Ba4 1/2-1/2

[Event "POL-chT 2nd League Juniors 2020"]
[Site "Sypniewo"]
[Date "2020.10.23"]
[Round "1.9"]
[White "Cieply, Krzysztof"]
[Black "Duda, Leon"]
[Result "1-0"]
[ECO "B32"]
[WhiteElo "1573"]
[BlackElo "1388"]
[Annotator "NA RC"]
[PlyCount "79"]
[EventDate "2020.10.23"]
[EventType "team-tourn"]
[EventCountry "POL"]
[SourceTitle "playchess.com"]
[Source "ChessBase"]
[SourceQuality "1"]
[TimeControl "5400+30"]

1. e4 {[%emt 0:00:00]} c5 {[%emt 0:00:00]} 2. Nf3 {[%emt 0:00:00]} Nc6 {[%emt 0:00:00]} 3. d4 {[%emt 0:00:00]} cxd4 {[%emt 0:00:05]} 4. Nxd4 {[%emt 0:00:02]} e5 {[%emt 0:00:07]} 5. Nb3 {[%emt 0:00:44]} Nf6 {[%emt 0:01:23]} 6. Bg5 {[%emt 0:00:10]} h6 {[%emt 0:00:28]} 7. Bxf6 {[%emt 0:00:08]} Qxf6 {[%emt 0:00:30]} 8. Bd3 {[%emt 0:03:14]} Be7 {[%emt 0:01:52]} 9. O-O {[%emt 0:00:17]} O-O {[%emt 0:00:26]} 10. Nc3 {[%emt 0:00:11]} Qg6 {[%emt 0:00:43]} 11. Kh1 {[%emt 0:00:13]} d6 {[%emt 0:00:52]} 12. Nd5 {[%emt 0:00:19]} f5 {[%emt 0:01:24]} 13. exf5 {[%emt 0:00:29]} Bxf5 {[%emt 0:00:31]} 14. Bxf5 {[%emt 0:00:25]} Rxf5 {[%emt 0:00:55]} 15. Qe2 {[%emt 0:03:55]} Raf8 {[%emt 0:02:40]} 16. f3 {[%emt 0:03:15]} Kh8 {[%emt 0:04:40]} 17. Nd2 {[%emt 0:03:16]} Qe6 {[%emt 0:01:53]} 18. Qd3 {[%emt 0:04:11]} Nd4 {[%emt 0:04:09]} 19. Nxe7 {[%emt 0:02:28]} Qxe7 {[%emt 0:00:29]} 20. Rae1 {[%emt 0:00:39]} Rh5 {[%emt 0:08:28]} 21. Qxd4 {[%emt 0:02:23]} Qg5 {[%emt 0:05:59]} 22. Qf2 {[%emt 0:01:19]} Rf4 {[%emt 0:01:07]} 23. g3 {[%emt 0:01:03]} Rf8 {[%emt 0:04:00]} 24. Qg2 {[%emt 0:03:53]} d5 {[%emt 0:00:59]} 25. f4 {[%emt 0:03:20]} exf4 {[%emt 0:02:10]} 26. g4 {[%emt 0:01:15]} Rh4 {[%emt 0:04:29]} 27. Nf3 {[%emt 0:00:39]} Qxg4 {[%emt 0:00:22]} 28. Nxh4 {[%emt 0:00:07]} Qxh4 {[%emt 0:00:08]} 29. Rg1 {[%emt 0:02:05]} g5 {[%emt 0:03:59]} 30. Qxd5 {[%emt 0:02:11]} f3 {[%emt 0:01:03]} 31. Qe5+ {[%emt 0:01:06]} Kg8 {[%emt 0:00:19]} 32. Qe6+ {[%emt 0:00:02]} Kh8 {[%emt 0:00:27]} 33. Qe7 {[%emt 0:02:20]} Kg8 {[%emt 0:06:38]} 34. Re6 {[%emt 0:00:59]} Qh5 {[%emt 0:00:27]} 35. Rf6 {[%emt 0:02:14]} Re8 {[%emt 0:01:35]} 36. Rxh6 {[%emt 0:01:38]} Qxh6 {[%emt 0:12:25]} 37. Rxg5+ {[%emt 0:00:12]} Qxg5 {[%emt 0:01:16]} 38. Qxg5+ {[%emt 0:00:04]} Kf7 {[%emt 0:00:16]} 39. Qh5+ {[%emt 0:00:12]} Ke7 {[%emt 0:00:18]} 40. Qxf3 {[%emt 0:00:08]} 1-0

[Event "POL-chT 2nd League Juniors 2020"]
[Site "Sypniewo"]
[Date "2020.10.23"]
[Round "1.9"]
[White "Maj, Samuel"]
[Black "Komendecki, Antoni"]
[Result "0-1"]
[ECO "A70"]
[WhiteElo "1305"]
[BlackElo "1801"]
[Annotator "NA"]
[PlyCount "90"]
[EventDate "2020.10.23"]
[EventType "team-tourn"]
[EventCountry "POL"]
[SourceTitle "playchess.com"]
[Source "ChessBase"]
[SourceQuality "1"]
[TimeControl "5400+30"]

1. d4 {[%emt 0:00:00]} Nf6 {[%emt 0:00:00]} 2. c4 {[%emt 0:00:00]} c5 {[%emt 0:00:10]} 3. d5 {[%emt 0:00:00]} e6 {[%emt 0:00:24]} 4. Nc3 {[%emt 0:00:01]} exd5 {[%emt 0:00:17]} 5. cxd5 {[%emt 0:00:02]} d6 {[%emt 0:00:34]} 6. e4 {[%emt 0:00:13]} g6 {[%emt 0:00:24]} 7. Nf3 {[%emt 0:00:20]} Bg7 {[%emt 0:00:30]} 8. h3 {[%emt 0:00:22]} O-O {[%emt 0:00:19]} 9. Bd3 {[%emt 0:00:10]} b5 {[%emt 0:01:41]} 10. Nxb5 {[%emt 0:01:47]} Re8 {[%emt 0:00:17]} 11. O-O {[%emt 0:01:54]} Nxe4 {[%emt 0:01:53]} 12. Re1 {[%emt 0:08:29]} a6 {[%emt 0:36:05]} 13. Na3 {[%emt 0:20:09] A70: Modern Benoni: 6 e4 g6 7 Nf3.} Nf6 {[%emt 0:01:11]} 14. Nc4 {[%emt 0:08:28]} Rxe1+ {[%emt 0:01:04]} 15. Qxe1 {[%emt 0:01:14]} Bb7 $15 {[%emt 0:01:20]} ({Much worse is} 15... Nxd5 $6 16. Be4 $16) 16. Bf4 {[%emt 0:02:13]} Bxd5 {[%emt 0:17:01]} 17. Nxd6 {[%emt 0:06:09]} Nc6 {[%emt 0:08:27]} 18. Bc4 {[%emt 0:12:15] [#]} Bxc4 $146 {[%emt 0:01:28]} ({Predecessor:} 18... Ra7 19. Rd1 Bxf3 20. gxf3 Nd4 21. Rd3 Rd7 22. Nxf7 Rxf7 23. Qe5 Nh5 24. Qc7 Qf6 25. Be5 Nxf3+ {0-1 (25) Kerek,C (2388)-Szieberth,A (2334) Hungary 1999}) 19. Nxc4 {[%emt 0:01:42]} Nd4 {[%emt 0:00:48]} 20. Rd1 {[%emt 0:02:39]} Nd5 {[%emt 0:03:00]} 21. Nxd4 {[%emt 0:05:38]} Nxf4 {[%emt 0:09:51]} 22. Ne6 {[%emt 0:06:32]} Qf6 {[%emt 0:02:04]} 23. Nxg7 {[%emt 0:00:24]} Kxg7 {[%emt 0:00:57]} 24. Qe4 {[%emt 0:01:35]} Rb8 {[%emt 0:01:20]} 25. b3 {[%emt 0:08:35]} Qg5 {[%emt 0:05:05]} 26. Kh2 {[%emt 0:01:43]} Re8 {[%emt 0:00:49]} 27. Qf3 {[%emt 0:01:19]} Re7 {[%emt 0:01:49]} 28. g3 {[%emt 0:01:25]} Ne6 {[%emt 0:00:48]} 29. h4 {[%emt 0:01:52]} Qh6 {[%emt 0:01:46]} 30. Qe3 {[%emt 0:03:29]} Qh5 {[%emt 0:01:42]} 31. Re1 {[%emt 0:00:38]} Rd7 {[%emt 0:01:28]} 32. Qe5+ {[%emt 0:01:23]} Qxe5 {[%emt 0:00:02]} 33. Rxe5 {[%emt 0:00:10]} Kf6 {[%emt 0:00:18]} 34. Kg2 {[%emt 0:00:56]} Rd1 {[%emt 0:01:19]} 35. f4 {[%emt 0:01:12]} Ra1 {[%emt 0:00:32]} 36. Re2 {[%emt 0:00:11]} Nd4 {[%emt 0:00:14]} 37. Rd2 {[%emt 0:00:33]} Ne6 {[%emt 0:00:55]} 38. Ne5 {[%emt 0:01:10]} h5 {[%emt 0:00:19]} 39. Rc2 {[%emt 0:01:58]} Nd4 {[%emt 0:00:40]} 40. Rd2 {[%emt 0:00:27]} Ke6 {[%emt 0:00:08]} 41. Kf2 {[%emt 0:00:40]} Nb5 {[%emt 0:00:24]} 42. Nd7 {[%emt 0:00:26]} Nc3 {[%emt 0:00:56]} 43. Nxc5+ {[%emt 0:00:12]} Kf5 {[%emt 0:00:01]} 44. a4 {[%emt 0:00:42]} Rc1 {[%emt 0:01:05]} 45. Rb2 {[%emt 0:00:38]} Nd1+ {[%emt 0:00:04]} 0-1

[Event "POL-chT 2nd League Juniors 2020"]
[Site "Sypniewo"]
[Date "2020.10.23"]
[Round "1.11"]
[White "Uliasz, Katarzyna"]
[Black "Lascar, Maria Elena"]
[Result "1/2-1/2"]
[ECO "B28"]
[WhiteElo "1495"]
[BlackElo "1552"]
[Annotator "NA"]
[PlyCount "102"]
[EventDate "2020.10.23"]
[EventType "team-tourn"]
[EventCountry "POL"]
[SourceTitle "playchess.com"]
[Source "ChessBase"]
[SourceQuality "1"]
[TimeControl "5400+30"]

1. e4 {[%emt 0:00:00]} c5 {[%emt 0:00:00]} 2. Nf3 {[%emt 0:00:00]} a6 {[%emt 0:00:00]} 3. d3 {[%emt 0:00:00]} g6 {[%emt 0:01:37]} 4. g3 {[%emt 0:00:00]} Bg7 {[%emt 0:00:15]} 5. Bg2 {[%emt 0:00:01]} e5 {[%emt 0:02:37]} 6. O-O {[%emt 0:04:43]} Ne7 {[%emt 0:00:48]} 7. Nc3 {[%emt 0:02:14]} O-O {[%emt 0:01:02]} 8. Be3 {[%emt 0:10:23]} d6 {[%emt 0:01:24]} 9. Qd2 {[%emt 0:00:21]} Nbc6 {[%emt 0:01:47]} 10. Bh6 {[%emt 0:01:23]} f6 {[%emt 0:08:07]} 11. h4 {[%emt 0:02:41]} Be6 {[%emt 0:06:23]} 12. Nh2 {[%emt 0:05:12]} Rf7 {[%emt 0:03:44]} 13. Nd5 {[%emt 0:03:49]} Rc8 {[%emt 0:06:41]} 14. Bxg7 {[%emt 0:06:10]} Kxg7 {[%emt 0:00:07]} 15. Nxe7 {[%emt 0:09:09]} Qxe7 {[%emt 0:02:43]} 16. f4 {[%emt 0:01:05]} Bd7 {[%emt 0:12:07]} 17. c3 {[%emt 0:07:15]} b5 {[%emt 0:12:41]} 18. f5 {[%emt 0:01:11]} Rh8 {[%emt 0:11:54]} 19. Ng4 {[%emt 0:04:24]} h5 {[%emt 0:03:44]} 20. fxg6 {[%emt 0:01:04]} Rff8 {[%emt 0:01:40]} 21. Ne3 {[%emt 0:00:17]} Qd8 {[%emt 0:11:31]} 22. Nf5+ {[%emt 0:00:32]} Bxf5 {[%emt 0:00:05]} 23. exf5 {[%emt 0:00:05]} Ne7 {[%emt 0:02:09]} 24. a4 {[%emt 0:00:50]} Qd7 {[%emt 0:01:00]} 25. axb5 {[%emt 0:00:41]} Qxb5 {[%emt 0:02:29]} 26. c4 {[%emt 0:02:38]} Qb6 {[%emt 0:01:20]} 27. Be4 {[%emt 0:00:27]} Rb8 {[%emt 0:00:43]} 28. Ra2 {[%emt 0:00:23]} Nc6 {[%emt 0:01:38]} 29. Bxc6 {[%emt 0:01:45]} Qxc6 {[%emt 0:00:02]} 30. Rfa1 {[%emt 0:00:02]} Qf3 {[%emt 0:03:08]} 31. Qf2 {[%emt 0:02:09]} Qxd3 {[%emt 0:00:16]} 32. Rxa6 {[%emt 0:00:01]} Rb7 {[%emt 0:00:24]} 33. Ra7 {[%emt 0:05:01]} Rhb8 {[%emt 0:00:16]} 34. Qg2 {[%emt 0:02:24]} e4 {[%emt 0:00:31]} 35. Rxb7+ {[%emt 0:02:21]} Rxb7 {[%emt 0:00:01]} 36. Re1 {[%emt 0:06:12]} Re7 {[%emt 0:02:06]} 37. g4 {[%emt 0:05:20]} Qxc4 {[%emt 0:00:56]} 38. gxh5 {[%emt 0:00:52]} Qd4+ {[%emt 0:00:25]} 39. Kh1 {[%emt 0:04:45]} e3 {[%emt 0:00:14]} 40. Qg3 {[%emt 0:01:08]} Qe4+ {[%emt 0:00:40]} 41. Kh2 {[%emt 0:01:33]} Qxf5 {[%emt 0:00:38]} 42. Qxd6 {[%emt 0:04:06]} Rd7 {[%emt 0:00:29]} 43. h6+ {[%emt 0:01:26]} Kxg6 {[%emt 0:00:29]} 44. Qg3+ {[%emt 0:02:41]} Kxh6 {[%emt 0:00:27]} 45. Qxe3+ {[%emt 0:00:50]} Kh7 {[%emt 0:00:24]} 46. Re2 {[%emt 0:01:13]} Rg7 {[%emt 0:00:38]} 47. Qe4 {[%emt 0:00:42]} Qxe4 {[%emt 0:00:12]} 48. Rxe4 {[%emt 0:00:01]} Rb7 {[%emt 0:00:30]} 49. Re2 {[%emt 0:00:15]} Kg6 {[%emt 0:00:39]} 50. Rc2 {[%emt 0:00:07]} Rb5 {[%emt 0:00:18]} 51. Kg3 {[%emt 0:00:21]} f5 1/2-1/2